Cogmind - Beta 13 @@@ ROGUE MODE // 2024.06.16 @ 16:43:20 // Winter2019/RPGLIKE Player: Haldron Result: Destroyed by Lightning with EMDS Performance ------------- Evolutions (6) 3000 Regions Visited (26) 5200 Robots Destroyed (434) 2170 Value Destroyed (19290) 19290 Prototype IDs (63) 1260 Alien Tech Used (0) 0 Bonus (12526) 12526 TOTAL SCORE: 43446 Bonus ------- High Alert Combat Kills 2660 Follower Combat Kills 2517 Entered Garrisons 600 Used RIF Installer 1500 Network Hubs Disabled 800 Aligned with FarCom 300 Met Data Miner 300 MAIN.C Attacked Warlord 500 Warlord Defense Kills 3180 Built Enhanced Grunts 300 Friendly Fire -131 Cogmind --------- Core Integrity 0/1000 Matter 390/400 Energy 395/395 System Corruption 0% Temperature Cool (0) Movement Flying (34) Location -4/Hub_04(d) Parts ------- > --- POWER (2) -------- Light Fission Core Compact Particle Reactor > --- PROPULSION (6) --- Field Propulsion Array Field Propulsion Array Field Propulsion Array > --- UTILITY (8) ------ Triangulator Long-range Terrain Scanner Armor Integrity Analyzer Improved Transmission Jammer Advanced ECM Suite Graphene Brace Improved Hacking Suite Improved System Guard > --- WEAPON (6) ------- Long-range Phase Cannon Advanced Datajack Ripper Ripper Phasing Sabre Phasing Sabre > --- INVENTORY (6) ---- Protomatter-54 Cloak of Protection Improved Hacking Suite Combat Drone Bay (2/2) Fusion Bomb Launcher Peak State ------------ > --- POWER ------------ Antimatter Reactor Compact Particle Reactor > --- PROPULSION ------- Centrium Wheel Centrium Wheel Centrium Wheel Centrium Wheel > --- UTILITY ---------- Triangulator Improved Terrain Scanner 0b10 Decoder Chip [Scout] Armor Integrity Analyzer Quantum Capacitor Cloak of Protection Graphene Brace > --- WEAPON ----------- Vortex Shotgun Vortex Shotgun Vortex Rail Nova Cannon Vortex Driver Vortex Driver > --- INVENTORY -------- Improved Transmission Jammer Combat Drone Bay Vortex Rail Fusion Bomb Launcher Improved Remote Datajack [Rating: 147] Favorites ----------- Power Antimatter Reactor Engine Reinforced Deuterium Engine Power Core Micro Fission Core Reactor Antimatter Reactor Propulsion Armored Wheel Treads Light Treads Wheel Armored Wheel Flight Unit Field Propulsion Array Utility Graphene Brace Device Graphene Brace Storage Advanced Energy Well Processor Armor Integrity Analyzer Hackware Relay Coupler [Grunt] Protection Hardened Heavy Armor Plating Weapon Hypervelocity Mass Driver Energy Gun EM Pulse Gun Energy Cannon Improved EM Pulse Cannon Ballistic Gun Assault Rifle Ballistic Cannon Hypervelocity Mass Driver Launcher Fusion Bomb Launcher Special Weapon Improved Remote Datajack Impact Weapon Powered Hammer Slashing Weapon Phasing Sabre Special Melee Weapon Advanced Datajack Build | -11 -10 -10 -10 -9 -8 -7 -7 -7 -7 -7 -7 -6 -6 -6 -6 -6 -5 -5 -5 -5 -4 -4 -4 -4 -4 -4 ------- Run | Yrd Mat Min Exi Min Mat Fac Gar Fac Low Low Dat Pro Fac Gar Fac Gar Fac Upp Upp War Pro Fac Ext Cet Arc Hub Slots Evolved 18 | 3 2 . . . 2 1 2 2 1 . . . . . . . 3 . . . . 2 . . . . Power 1 | . . . . . 1 . . . . . . . . . . . . . . . . . . . . . Propulsion 5 | . 1 . . . . . . 2 . . . . . . . . . . . . . 2 . . . . Utility 7 | 1 1 . . . 1 1 1 . 1 . . . . . . . 1 . . . . . . . . . Weapon 5 | 2 . . . . . . 1 . . . . . . . . . 2 . . . . . . . . . Parts Attached 281 | 6 9 . 1 8 17 8 6 56 1 1 3 . 6 10 22 9 27 1 . 16 8 34 17 2 9 4 Power 14 | 1 . . . . 4 . 2 . . . . . . . 2 . . . . . . 4 . . . 1 Engine 5 | 1 . . . . 4 . . . . . . . . . . . . . . . . . . . . . Core 2 | . . . . . . . . . . . . . . . . . . . . . . 1 . . . 1 Reactor 7 | . . . . . . . 2 . . . . . . . 2 . . . . . . 3 . . . . Propulsion 23 | 1 2 . . . . . . 8 . . . . . . . . . . . . . 9 3 . . . Treads 1 | 1 . . . . . . . . . . . . . . . . . . . . . . . . . . Leg . | . . . . . . . . . . . . . . . . . . . . . . . . . . . Wheel 14 | . 2 . . . . . . 8 . . . . . . . . . . . . . 4 . . . . Hover . | . . . . . . . . . . . . . . . . . . . . . . . . . . . Flight 8 | . . . . . . . . . . . . . . . . . . . . . . 5 3 . . . Utility 95 | 1 3 . 1 2 4 5 2 12 1 . . . 3 6 13 3 10 1 . 2 4 9 2 . 8 3 Device 73 | 1 1 . 1 . 2 4 2 10 1 . . . 1 4 10 1 9 . . 2 4 8 2 . 8 2 Storage 1 | . . . . . . . . . . . . . . . 1 . . . . . . . . . . . Processor 7 | . . . . 1 . . . 1 . . . . 1 . 2 . . 1 . . . 1 . . . . Hackware 6 | . . . . . . . . . . . . . . 2 . 2 1 . . . . . . . . 1 Protection 8 | . 2 . . 1 2 1 . 1 . . . . 1 . . . . . . . . . . . . . Artifact . | . . . . . . . . . . . . . . . . . . . . . . . . . . . Weapon 149 | 3 4 . . 6 9 3 2 36 . 1 3 . 3 4 7 6 17 . . 14 4 12 12 2 1 . Energy Gun 32 | 1 2 . . 4 6 . . 12 . . . . . . . . . . . 4 1 2 . . . . Energy Cannon 46 | . 1 . . . . . 1 13 . . 3 . . . 3 2 8 . . 6 2 3 3 1 . . Ballistic Gun 3 | 2 1 . . . . . . . . . . . . . . . . . . . . . . . . . Ballistic Cannon 21 | . . . . . 1 1 1 8 . . . . 3 . 2 1 4 . . . . . . . . . Launcher 24 | . . . . 2 . 1 . . . . . . . . 2 1 3 . . 4 1 6 3 1 . . Special Weapon 8 | . . . . . . . . 1 . . . . . 2 . 2 2 . . . . 1 . . . . Impact Weapon 10 | . . . . . 2 1 . 2 . 1 . . . 2 . . . . . . . . 2 . . . Slashing Weapon 4 | . . . . . . . . . . . . . . . . . . . . . . . 4 . . . Piercing Weapon . | . . . . . . . . . . . . . . . . . . . . . . . . . . . Special Melee Weapon 1 | . . . . . . . . . . . . . . . . . . . . . . . . . 1 . Unidentified Prototypes 14 | . . . . . 1 . . 3 . . . . . . 6 . 1 . . 3 . . . . . . Corrupted Parts 2 | . . . . . 2 . . . . . . . . . . . . . . . . . . . . . System Corruption 4 | . . . . . 4 . . . . . . . . . . . . . . . . . . . . . Parts Lost 1 | . . . . . . . . . . . . . . . . . . . . . . . . . . 1 Power . | . . . . . . . . . . . . . . . . . . . . . . . . . . . Propulsion . | . . . . . . . . . . . . . . . . . . . . . . . . . . . Utility 1 | . . . . . . . . . . . . . . . . . . . . . . . . . . 1 Weapon . | . . . . . . . . . . . . . . . . . . . . . . . . . . . Highest Loss Streak 1 | . . . . . . . . . . . . . . . . . . . . . . . . . . 1 To Critical Strikes . | . . . . . . . . . . . . . . . . . . . . . . . . . . . Average Slot Usage (%) 90 | . 98 100 100 100 86 82 83 88 93 93 77 94 92 94 93 96 97 99 100 98 94 77 70 77 79 85 Engine 2 | . 13 11 11 11 18 16 10 . . . . . . . . . . . . . . . . . . . Reactor 7 | . . . . . . . 4 12 11 11 11 11 11 11 11 11 10 10 10 10 10 6 4 4 4 4 Wheel 17 | . 14 22 22 22 20 16 15 22 23 23 23 23 23 23 23 23 21 20 20 20 20 5 . . . . Flight 2 | . . . . . . . . . . . . . . . . . . . . . . 11 13 13 13 13 Device 24 | . 14 11 16 21 11 24 26 25 28 29 29 29 24 18 19 14 27 34 30 28 24 23 22 22 25 26 Processor 5 | . . . . . 3 . . . . . . . 4 5 8 17 10 5 10 10 10 9 9 9 9 9 Protection 4 | . 13 22 16 11 9 7 7 6 5 5 5 5 3 5 1 . . . . . . . . . . . Energy Gun 3 | . 22 33 33 30 11 . . 2 . . . . . . . . . . . 4 15 5 . . . . Energy Cannon 5 | . 8 . . . . . 2 7 17 17 1 17 9 . . 2 4 5 5 7 14 8 3 4 4 4 Ballistic Cannon 8 | . . . . . 6 7 7 4 . . . . 7 16 15 16 19 25 25 17 . . . . . . Impact Weapon 2 | . . . . . 6 7 7 6 5 4 5 5 5 4 3 . . . . . . . 2 . . . Slashing Weapon 1 | . . . . . . . . . . . . . . . . . . . . . . . 8 18 18 18 Naked Turns . | . . . . . . . . . . . . . . . . . . . . . . . . . . . Heaviest Build 122 | 12 20 20 25 25 71 74 95 93 87 87 87 87 98 98 98 89 114 114 113 117 122 117 53 52 52 61 Greatest Support 64 | 20 24 24 24 24 24 24 24 48 48 48 48 48 48 48 48 48 48 48 48 48 48 64 55 55 55 55 Greatest Overweight (x) 7 | 1 1 . 1 1 2 3 3 7 1 1 1 1 2 2 2 1 2 2 2 2 2 3 3 . . 1 Average Overweight (x) 1 | . . . . . 1 2 2 1 1 1 1 1 1 1 1 1 1 2 2 1 2 . . . . . Largest Inventory Capacity 6 | 2 2 2 2 2 3 3 4 5 5 5 5 5 5 6 6 6 6 6 6 6 6 6 6 6 6 6 Average Capacity 4 | 2 2 2 2 2 2 3 3 4 5 5 5 5 5 5 6 6 6 6 6 6 6 6 6 6 6 6 Most Carried 6 | . 2 2 2 2 3 3 4 5 5 5 5 5 5 6 6 6 6 6 6 6 6 6 6 6 6 6 Average Carried 4 | . 1 2 2 2 2 2 3 4 5 5 5 5 4 5 5 5 5 6 5 5 5 5 6 6 5 5 Final Capacity 6 | 2 2 2 2 2 3 3 4 5 5 5 5 5 5 6 6 6 6 6 6 6 6 6 6 6 6 6 Final Carried 6 | . 2 2 2 2 3 3 4 5 5 5 5 5 5 6 6 6 6 6 6 6 6 6 6 6 6 6 Class Distribution -------------------- 23% | Hacker-Gunner 23% | Hacker-Tank 17% | Hacker-Executioner 10% | Commander-Ninja 6% | Tank 5% | Hacker-Mutant 3% | Hacker-Scout Dominant Class ---------------- Tank | -10/Materials Tank | -10/Mines Tank | -10/Exiles Tank | -9/Mines Mutant | -8/Materials Hacker-Mutant | -7/Factory Hacker-Mutant | -7/Garrison Hacker-Tank | -7/Factory Hacker-Tank | -7/Lower Caves Hacker-Tank | -7/Lower Caves Hacker-Mutant | -7/Data Miner Hacker-Tank | -6/Proximity Caves Hacker-Gunner | -6/Factory Hacker-Gunner | -6/Garrison Hacker-Gunner | -6/Factory Hacker-Gunner | -6/Garrison Hacker-Gunner | -5/Factory Hacker-Executioner | -5/Upper Caves Hacker-Executioner | -5/Upper Caves Hacker-Executioner | -5/Warlord Hacker-Executioner | -4/Proximity Caves Hacker-Scout | -4/Factory Commander-Ninja | -4/Extension Commander-Ninja | -4/Cetus Commander-Ninja | -4/Archives Commander-Ninja | -4/Hub_04(d) Resources | -11 -10 -10 -10 -9 -8 -7 -7 -7 -7 -7 -7 -6 -6 -6 -6 -6 -5 -5 -5 -5 -4 -4 -4 -4 -4 -4 ----------- Run | Yrd Mat Min Exi Min Mat Fac Gar Fac Low Low Dat Pro Fac Gar Fac Gar Fac Upp Upp War Pro Fac Ext Cet Arc Hub Matter Collected 10374 | 320 174 . 10 90 564 473 309 1156 133 17 . 36 171 611 1109 491 2310 459 15 577 132 690 368 39 90 30 Remotely 328 | . . . . . 200 44 84 . . . . . . . . . . . . . . . . . . . Salvage Created 15718 | 79 533 111 . 213 696 620 250 2562 400 545 . 371 356 316 1499 393 3249 228 167 842 191 835 760 . 103 399 Parts 840 | 2 35 21 . 23 43 38 23 128 13 31 . 12 14 19 79 19 151 10 10 44 2 50 38 . 12 23 Haulers Intercepted 19 | . 2 . . . 4 1 . 4 . . . . . . 3 . 4 . . . . 1 . . . . Recyclers Shooed 8 | . 2 . . . 1 . . 2 . . . . . . . . 3 . . . . . . . . . Parts Field Recycled . | . . . . . . . . . . . . . . . . . . . . . . . . . . . Retrieved Matter . | . . . . . . . . . . . . . . . . . . . . . . . . . . . Parts Self-Destructed 59 | . . . . . . . . . 12 11 . 6 . . . . . 13 15 . 2 . . . . . Prevented 35 | . . . . . . . . . 8 21 . 6 . . . . . . . . . . . . . . Kills | -11 -10 -10 -10 -9 -8 -7 -7 -7 -7 -7 -7 -6 -6 -6 -6 -6 -5 -5 -5 -5 -4 -4 -4 -4 -4 -4 ------- Run | Yrd Mat Min Exi Min Mat Fac Gar Fac Low Low Dat Pro Fac Gar Fac Gar Fac Upp Upp War Pro Fac Ext Cet Arc Hub Combat Hostiles Destroyed 323 | . 11 10 . 10 13 16 11 38 8 13 . 6 6 11 22 11 52 4 6 26 3 26 14 . 1 5 Melee 9 | . . . . . . . . 2 . . . . . . . . . . . . . . 3 . 1 3 Guns 36 | . 10 7 . 2 4 . . 4 . . . . . . . . . . . 7 . 2 . . . . Cannons 192 | . 1 . . . 8 14 11 26 8 10 . 3 6 11 10 6 43 4 5 5 2 12 7 . . . AOE 71 | . . 3 . 8 . 2 . 1 . 1 . 2 . . 12 4 9 . . 14 1 12 2 . . . Classes Destroyed 29 | 2 6 . . 1 3 1 2 . . 1 . . . 1 5 . 1 1 . 4 1 . . . . . Worker 16 | . 2 . . . . . . 3 . . . . 1 . 3 . 2 . . . . 5 . . . . Builder 18 | . . . . 1 2 1 . 3 . . . . . . 4 . 4 . . . . 2 1 . . . Tunneler 7 | 1 . 1 . . . . . 1 . . . . . . . . 1 . . . . . 1 . . 2 Hauler 19 | . 2 . . . 4 1 . 4 . . . . . . 3 . 4 . . . . 1 . . . . Recycler 18 | 1 1 . . . 2 . . 4 . . . . . . 3 . 4 . . . . . 2 . . 1 Carrier 1 | . . . . . . . . . . . . . . . 1 . . . . . . . . . . . Mechanic 1 | . . . . . . . . . . . . . . . 1 . . . . . . . . . . . Operator 10 | . 1 . . . . . . 2 . . . . . . 1 . 2 . . . . . 1 . 3 . Drone 1 | . . . . . . . . . . . . . . . . . . . . . 1 . . . . . Watcher 21 | . 3 . . . 2 5 . 4 . . . . . . . . 5 . . . . 1 . . . 1 Swarmer 76 | . 3 6 . 8 4 3 . 5 . 7 . 3 . 4 . 4 9 . 6 3 . 8 3 . . . Cutter 3 | . . . . . . . . . . . . . . 3 . . . . . . . . . . . . Saboteur 1 | . . . . . . . . . . . . . . . 1 . . . . . . . . . . . Grunt 105 | . 8 4 . 2 1 8 4 15 6 2 . 2 3 2 3 2 16 . . 15 . 4 6 . . 2 Brawler 5 | . . . . . . . 2 . . . . . 1 . . . 1 1 . . . . . . . . Duelist 10 | . . . . . . . 1 1 2 2 . 1 . . . 1 . 2 . . . . . . . . Protector 4 | . . . . . . . . . . . . . . . 1 1 . . . . . 1 . . . 1 Sentry 40 | . . . . . 5 3 3 7 . 1 . . 1 1 2 2 5 1 . . . 3 4 . 1 1 Demolisher 1 | . . . . . . . . . . . . . . . . . 1 . . . . . . . . . Specialist 3 | . . . . . . . . . . . . . . . 2 . . . . 1 . . . . . . Hunter 19 | . . . . . 2 . . 2 . . . . . . 7 . 4 . . . 2 1 . . . 1 Programmer 46 | . . . . . . 2 1 8 . . . . 1 . 6 . 16 . . 2 . 9 1 . . . Heavy 1 | . . . . . 1 . . . . . . . . . . . . . . . . . . . . . Behemoth 3 | . . . . . . . . . . 1 . . . 1 . 1 . . . . . . . . . . Striker 1 | . . . . . . . . . . . . . . . . . . . . 1 . . . . . . Executioner 3 | . . . . . . . . . . . . . . . . . . . . 3 . . . . . . Decomposer 1 | . . . . . . . . . . . . . . . . . . 1 . . . . . . . . Samaritan 1 | . . . . . . . . . . . . . . . . . . 1 . . . . . . . . Tinkerer 1 | . . . . . . . . . . . . . . . . . . . . 1 . . . . . . Mutant 1 | . . . . . . . . . . . . . . . . . . . . 1 . . . . . . Best Kill Streak 11 | 2 4 4 . 4 4 4 4 4 4 4 . 3 2 4 11 10 7 3 3 9 3 8 5 . 2 3 Combat Bots Only 10 | . 3 3 . 4 4 3 4 3 4 4 . 3 2 4 8 10 5 3 3 9 3 5 2 . 1 2 Max Kills in Single Turn 5 | 1 1 2 . 2 2 1 1 2 1 3 . 2 1 1 5 4 4 2 1 3 1 4 2 . 1 2 Gunslinging 1 | . . 1 . . . . . . . . . . . . . . . . . . . . . . . . Exploded 4 | . . 2 . 2 . 1 . 1 . 1 . 2 . . 4 4 3 . . 3 1 2 1 . . . Melee 1 | . . . . . . . . 1 . . . . . . . . . . . . . . 1 . 1 1 Uniques/NPCs Destroyed . | . . . . . . . . . . . . . . . . . . . . . . . . . . . Combat | -11 -10 -10 -10 -9 -8 -7 -7 -7 -7 -7 -7 -6 -6 -6 -6 -6 -5 -5 -5 -5 -4 -4 -4 -4 -4 -4 -------- Run | Yrd Mat Min Exi Min Mat Fac Gar Fac Low Low Dat Pro Fac Gar Fac Gar Fac Upp Upp War Pro Fac Ext Cet Arc Hub Hostile Shots Fired 1301 | . 32 39 . 25 56 87 132 178 9 100 . 9 19 44 119 60 100 23 24 61 16 50 37 21 4 56 Missed 403 | . 13 6 . 2 17 31 42 56 2 31 . 3 7 13 36 20 26 5 11 16 8 14 16 7 . 21 Damage Taken 14123 | . 149 216 . 184 532 418 781 1498 195 742 . 69 100 478 1170 389 1943 277 149 1717 116 805 336 283 116 1460 Core 10468 | . 99 147 . 129 320 267 490 1001 100 499 . 47 65 301 887 309 1566 216 118 1362 95 666 271 227 100 1186 Absorbed by Shields 770 | . 56 87 . 61 . . . . 3 285 . 25 12 . . . . . . . . . 169 72 . . Redirected to Core 9230 | . 64 96 . 111 291 231 438 944 100 459 . 47 65 278 814 282 1365 216 106 1263 77 490 223 198 56 1016 Ignored by Resistances 1420 | . . . . . 63 76 106 179 17 132 . 12 13 60 110 51 160 40 26 119 19 75 55 45 15 47 Regen/Repaired (Parts) 968 | . . . . . 3 233 . 296 . . . . 248 . . . 188 . . . . . . . . . Core Remaining (%) 75 | 100 . . . 78 93 . . . . . . 74 . . . 80 . . . . 30 . . . . . Volleys Fired 1037 | 10 39 18 . 14 57 45 31 135 10 21 . 6 11 34 45 36 166 34 18 54 16 148 70 1 . 18 Largest 6 | 2 3 3 . 3 3 1 2 3 3 3 . 3 3 3 3 3 5 5 1 6 2 3 1 1 . 1 Hottest 463 | 40 165 145 . 145 161 60 176 207 207 207 . 207 207 198 198 237 330 330 113 463 200 218 105 52 . 105 Shots Fired 1690 | 20 116 54 . 32 88 45 32 180 31 64 . 18 28 57 96 66 339 56 18 84 19 158 70 1 . 18 Gun 299 | 20 92 54 . 27 48 . . 28 . . . . . . . . . . . 16 2 12 . . . . Cannon 1316 | . 24 . . . 40 43 32 152 31 64 . 18 28 53 90 59 330 56 18 59 15 134 52 . . 18 Launcher 51 | . . . . 5 . 2 . . . . . . . . 6 4 4 . . 9 2 12 6 1 . . Special 24 | . . . . . . . . . . . . . . 4 . 3 5 . . . . . 12 . . . Kinetic 721 | 20 28 . . . 40 43 31 58 . . . . 22 53 85 40 246 32 . 23 . . . . . . Thermal 474 | . 42 18 . 9 4 . . 12 . . . . . . 5 19 84 24 18 28 13 128 52 . . 18 Explosive 51 | . . . . 5 . 2 . . . . . . . . 6 4 4 . . 9 2 12 6 1 . . Electromagnetic 374 | . 46 36 . 18 44 . 1 110 31 64 . 18 6 . . . . . . . . . . . . . Entropic 46 | . . . . . . . . . . . . . . . . . . . . 24 4 18 . . . . Robot Hit Streak 37 | 5 18 19 . 20 28 20 19 26 28 17 . 6 11 20 15 28 37 23 4 25 10 29 10 . . 1 Robot Miss Streak 4 | 1 4 3 . 1 2 3 1 2 . 2 . 1 2 3 3 1 3 4 2 2 3 3 1 1 . . Penetration Max 1 | . . . . . . . . . . . . . 1 . 1 1 1 . . . . . . . . . Secondary Targets 4 | . 1 1 . 1 . . . 1 . . . . . . . . . . . . . . . . . . Max Gunslinging Chain 1 | . 1 1 . 1 . . . 1 . . . . . . . . . . . . . . . . . . Capacitor 230 | . . . . . . . . . . . . . . . . . 19 . . 19 13 127 52 . . . Shots Hit Robots 1118 | 13 65 26 . 25 74 36 26 152 24 38 . 12 19 43 59 41 210 24 11 46 15 59 73 4 8 15 Core Hits 602 | 3 29 14 . 16 28 23 9 60 12 17 . 7 10 20 55 23 90 7 5 43 7 54 34 5 5 26 Critical Kills 97 | . . . . . . . . 11 . . . . 5 9 17 5 44 2 1 3 . . . . . . Critical Parts Destroyed 169 | . . . . . . . . 24 . . . . 7 13 20 14 77 7 . 7 . . . . . . Critical Strikes 306 | . 1 1 . . 6 7 . 38 . . . . 12 24 38 22 125 9 1 11 1 2 3 1 1 3 Burn 1 | . . . . . 1 . . . . . . . . . . . . . . . . . . . . . Meltdown 4 | . . . . . . . . . . . . . . . . 1 2 . 1 . . . . . . . Destroy 268 | . . . . . . . . 32 . . . . 12 24 38 21 123 9 . 9 . . . . . . Blast 12 | . . . . . 5 7 . . . . . . . . . . . . . . . . . . . . Corrupt 5 | . 1 1 . . . . . 3 . . . . . . . . . . . . . . . . . . Smash 3 | . . . . . . . . 3 . . . . . . . . . . . . . . . . . . Sever 8 | . . . . . . . . . . . . . . . . . . . . . . . 3 1 1 3 Detonate 1 | . . . . . . . . . . . . . . . . . . . . 1 . . . . . . Sunder 4 | . . . . . . . . . . . . . . . . . . . . 1 1 2 . . . . Melee Attacks 153 | . . . . . 5 2 12 51 . . . . 1 18 3 . . . . . . . 22 5 11 23 Impact 95 | . . . . . 5 2 12 51 . . . . 1 18 3 . . . . . . . 3 . . . Slashing 56 | . . . . . . . . . . . . . . . . . . . . . . . 19 5 9 23 Piercing . | . . . . . . . . . . . . . . . . . . . . . . . . . . . Sneak Attacks 17 | . . . . . 1 . . 7 . . . . . . 1 . . . . . . . 2 . 5 1 Combat Hostiles 2 | . . . . . . . . . . . . . . . . . . . . . . . 2 . . . Follow-up Attacks 15 | . . . . . . . . . . . . . . . . . . . . . . . 7 2 1 5 Damage Inflicted 47482 | 156 1102 566 . 786 2759 2351 1662 4666 767 1117 . 472 509 743 3623 1575 6912 580 432 4005 936 5283 3781 398 459 1842 Guns 3988 | 156 780 377 . 312 832 . . 276 . . . . . . . . . . . 653 30 572 . . . . Cannons 25395 | . 208 . . . 1812 2187 1662 3264 683 901 . 315 476 743 1190 865 5127 580 432 803 523 1993 1596 . . 35 Explosions 14698 | . 114 189 . 474 . 164 . 144 84 216 . 157 33 . 2314 710 1770 . . 2549 383 2718 1267 230 . 1182 Melee 3386 | . . . . . 115 . . 982 . . . . . . 119 . . . . . . . 918 168 459 625 Ramming 15 | . . . . . . . . . . . . . . . . . 15 . . . . . . . . . Kinetic 13970 | 156 199 . . . 1812 2187 1662 856 . . . . 372 743 1085 729 3469 384 . 316 . . . . . . Thermal 10769 | . 425 337 . 90 44 . . 330 84 216 . 157 33 . 792 136 2627 196 432 401 439 2399 1596 . . 35 Explosive 10011 | . . . . 474 . 164 . . . . . . . . 1627 710 801 . . 2466 383 1889 1267 230 . . Electromagnetic 7400 | . 478 229 . 222 788 . . 2498 683 901 . 315 104 . . . . . . . . . . . . 1182 Impact 1498 | . . . . . 115 . . 982 . . . . . . 119 . . . . . . . 282 . . . Slashing 1888 | . . . . . . . . . . . . . . . . . . . . . . . 636 168 459 625 Piercing . | . . . . . . . . . . . . . . . . . . . . . . . . . . . Entropic 1931 | . . . . . . . . . . . . . . . . . . . . 822 114 995 . . . . Highest Corruption 9 | . . . . . 7 . . 3 3 3 3 3 1 1 8 . 5 5 5 9 9 2 . . . . Average Corruption 3 | . . . . . 5 . . 1 3 3 3 3 1 1 4 . 5 5 5 6 9 1 . . . . Corruption Purged 13 | . . . . . . . . 5 . . . . . . 5 . . . . . . . . . 3 . Corruption Blocked 23 | . . . . . . . . . . . . . . . . . . . . 23 . . . . . . Effects 274 | . . . . . 28 . . 47 10 13 2 5 7 13 31 . 26 38 6 33 13 2 . . . . Message Errors 57 | . . . . . 6 . . 13 2 3 . . 2 2 8 . 6 4 3 4 3 1 . . . . Matter Fused 56 | . . . . . 7 . . 7 2 1 1 1 2 2 7 . 8 6 1 8 2 1 . . . . Heat Flow Errors 37 | . . . . . 5 . . 8 . 3 . 1 1 1 5 . 4 5 . 3 1 . . . . . Energy Discharges 22 | . . . . . 1 . . 5 2 1 1 . . 2 2 . 2 2 1 2 1 . . . . . Parts Rejected 4 | . . . . . . . . 2 . 1 . . . . . . . . . 1 . . . . . . Parts Fused 2 | . . . . . . . . 2 . . . . . . . . . . . . . . . . . . Data Loss (minor) 44 | . . . . . 5 . . 4 3 2 . 2 1 4 5 . 3 9 1 5 . . . . . . Data Loss (major) 21 | . . . . . 3 . . 3 . 1 . . . 1 . . . 5 . 4 4 . . . . . Misfires 14 | . . . . . . . . 2 1 1 . . 1 . 1 . 1 3 . 3 1 . . . . . Alerts 11 | . . . . . 1 . . 1 . . . 1 . 1 1 . 1 3 . 1 1 . . . . . Weapon Failures 6 | . . . . . . . . . . . . . . . 2 . 1 1 . 2 . . . . . . Overload Shots . | . . . . . . . . . . . . . . . . . . . . . . . . . . . Overflow Damage 2891 | . 15 . . 2 226 223 73 739 . 1 . 11 . . 161 41 429 104 27 127 100 446 99 . 67 . Projectiles 991 | . . . . . 151 213 73 86 . 1 . 11 . . 4 . 111 104 27 38 66 75 31 . . . Explosions 987 | . 15 . . 2 . 10 . . . . . . . . 58 41 318 . . 89 34 371 49 . . . Melee 913 | . . . . . 75 . . 653 . . . . . . 99 . . . . . . . 19 . 67 . Knockbacks 69 | . . . . . 9 4 7 11 . . . . 1 1 8 . 26 2 . . . . . . . . Impact 4 | . . . . . . . . 3 . . . . . . 1 . . . . . . . . . . . Kinetic 60 | . . . . . 7 4 6 8 . . . . 1 1 7 . 24 2 . . . . . . . . Secondary 5 | . . . . . 2 . 1 . . . . . . . . . 2 . . . . . . . . . Self-Inflicted Damage 582 | . . . . . . . . 45 55 54 . . . . 52 . 33 . . 154 . . . . . 189 Shots 11 | . . . . . . . . 1 1 1 . . . . 1 . 1 . . 4 . . . . . 2 Rammed 1 | . . . . . . . . . . . . . . . . . 1 . . . . . . . . . Targets Rammed 1 | . . . . . . . . . . . . . . . . . 1 . . . . . . . . . Kicked . | . . . . . . . . . . . . . . . . . . . . . . . . . . . Crushed . | . . . . . . . . . . . . . . . . . . . . . . . . . . . Highest Temperature 521 | . 56 44 . 5 247 18 81 360 414 387 . 234 198 294 218 315 500 308 10 346 240 521 308 . . . Average Temperature 92 | . 19 18 . 3 61 7 15 93 138 153 . 89 72 129 55 147 94 69 3 104 85 113 102 . . . Received Heat Transfer 1935 | . 46 42 . 64 54 111 252 393 42 141 . 30 27 60 54 96 123 18 . 153 . 27 65 35 27 75 Effects 17 | . . . . . . . . . 2 1 . . . . . 1 7 . . 3 . 3 . . . . Shutdowns 6 | . . . . . . . . . 1 1 . . . . . . 3 . . 1 . . . . . . Energy Bleed 1 | . . . . . . . . . . . . . . . . 1 . . . . . . . . . . Interference 5 | . . . . . . . . . . . . . . . . . 3 . . 2 . . . . . . Matter Decay 4 | . . . . . . . . . 1 . . . . . . . 1 . . . . 2 . . . . Short Circuit 1 | . . . . . . . . . . . . . . . . . . . . . . 1 . . . . Siege Activations . | . . . . . . . . . . . . . . . . . . . . . . . . . . . Robots Corrupted 13 | . . . . . 2 . . 5 . 2 . 1 . . . . . . . . . . . . . 3 Combat Hostiles 10 | . . . . . 1 . . 4 . 2 . 1 . . . . . . . . . . . . . 2 Parts Fried 74 | . 1 . . 1 13 . . 26 9 9 . 2 . . 3 . . . . . . . 1 . . 9 Impact Corruptions 27 | . . . . . 2 . . 21 . . . . . . 3 . . . . . . . 1 . . . Robots Melted 5 | . . . . . . . . . . . . . . . . 1 2 . 1 . . . 1 . . . Combat Hostiles 3 | . . . . . . . . . . . . . . . . 1 . . 1 . . . 1 . . . Parts Melted 22 | . . 1 . 1 1 . . . . . . . . . 2 1 7 2 1 2 . 1 3 . . . Heat Transferred 10460 | . 853 470 . 222 185 . . 446 100 150 . 100 50 . 563 129 2178 185 407 346 407 2041 1591 . . 37 Parts Sabotaged . | . . . . . . . . . . . . . . . . . . . . . . . . . . . Parts Stolen . | . . . . . . . . . . . . . . . . . . . . . . . . . . . Parts Stripped . | . . . . . . . . . . . . . . . . . . . . . . . . . . . Power Chain Reactions 12 | . 1 2 . . . . . 2 1 3 . 2 1 . . . . . . . . . . . . . Alert | -11 -10 -10 -10 -9 -8 -7 -7 -7 -7 -7 -7 -6 -6 -6 -6 -6 -5 -5 -5 -5 -4 -4 -4 -4 -4 -4 ------- Run | Yrd Mat Min Exi Min Mat Fac Gar Fac Low Low Dat Pro Fac Gar Fac Gar Fac Upp Upp War Pro Fac Ext Cet Arc Hub Peak Influence 1745 | 10 227 339 . 260 448 430 675 705 . . . . 159 689 738 1036 1745 . . . . 1580 1249 922 575 1614 Initial 940 | . 6 60 . . 101 152 257 354 . . . . 88 74 361 457 543 . . . . 940 774 699 368 . Average 385 | 3 125 185 . 152 211 242 568 274 . . . . 62 328 320 741 687 . . . . 764 336 905 252 239 Maximum Alert Level 5 | . 1 1 . 1 2 2 2 3 . . . . . 2 3 3 5 . . . . 4 4 3 2 5 Low Security (%) 38 | 100 82 71 . 82 56 49 . 45 . . . . 100 36 40 . 8 . . . . . 44 . 41 79 Level 1 23 | . 17 28 . 17 36 43 11 29 . . . . . 24 25 . 21 . . . . 4 16 . 39 . Level 2 22 | . . . . . 6 7 88 17 . . . . . 39 25 46 26 . . . . 49 17 3 19 1 Level 3 11 | . . . . . . . . 6 . . . . . . 8 53 25 . . . . 28 20 96 . 14 Level 4 3 | . . . . . . . . . . . . . . . . . 14 . . . . 17 1 . . 2 Level 5 . | . . . . . . . . . . . . . . . . . 3 . . . . . . . . 1 High Security . | . . . . . . . . . . . . . . . . . . . . . . . . . . . Max Security . | . . . . . . . . . . . . . . . . . . . . . . . . . . . Squads Dispatched 86 | . 2 . . . 2 6 . 22 . . . . 5 . 7 . 20 . . . . 13 3 . . 6 Investigation 27 | . 2 . . . . 3 . 10 . . . . 4 . 1 . 3 . . . . 3 1 . . . Extermination 28 | . . . . . . 2 . 8 . . . . 1 . 3 . 9 . . . . 4 . . . 1 Reinforcement 20 | . . . . . 1 1 . 3 . . . . . . 2 . 3 . . . . 4 1 . . 5 Assault 8 | . . . . . 1 . . 1 . . . . . . 1 . 2 . . . . 2 1 . . . Garrison 3 | . . . . . . . . . . . . . . . . . 3 . . . . . . . . . Intercept . | . . . . . . . . . . . . . . . . . . . . . . . . . . . Searches Triggered 5 | . . . . . . . . . . . . . . . . . . . . . . 5 . . . . Data Miner Redirects 3 | . . . . . . . . . . . . . . . . . . . . . . 3 . . . . Construction Impeded 4 | . . . . . . . . . . . . . . . 1 . 1 . . . . . 1 . . 1 Haulers Reinforced 5 | . . . . . . . . 2 . . . . . . . . 2 . . . . 1 . . . . Active Scanning Responses . | . . . . . . . . . . . . . . . . . . . . . . . . . . . Cargo Convoy Interrupts 2 | . . . . . . . . . . . . . 1 . 1 . . . . . . . . . . . Stealth | -11 -10 -10 -10 -9 -8 -7 -7 -7 -7 -7 -7 -6 -6 -6 -6 -6 -5 -5 -5 -5 -4 -4 -4 -4 -4 -4 --------- Run | Yrd Mat Min Exi Min Mat Fac Gar Fac Low Low Dat Pro Fac Gar Fac Gar Fac Upp Upp War Pro Fac Ext Cet Arc Hub Distress Signals 16 | . 1 . . . 1 1 . 2 . . . . . . . . 1 . . 1 . 4 1 1 . 3 Communications Jammed 166 | . . . . . . . . . . . . . . . . . 4 . . . . 32 42 66 . 22 Distress Signals 151 | . . . . . . . . . . . . . . . . . . . . . . 32 42 66 . 11 Times Spotted 506 | . 20 12 . 9 17 18 14 54 7 13 . 4 10 13 27 18 65 11 9 48 7 48 36 5 3 38 Peak Tracking Total 21 | . 3 3 . 4 5 3 7 3 3 5 . 3 3 5 9 6 6 8 5 13 2 6 6 5 3 21 Tactical Retreats 32 | . 1 1 . . 1 . 3 4 1 . . . . 1 . 1 4 2 . 3 . 3 . . . 7 Traps | -11 -10 -10 -10 -9 -8 -7 -7 -7 -7 -7 -7 -6 -6 -6 -6 -6 -5 -5 -5 -5 -4 -4 -4 -4 -4 -4 ------- Run | Yrd Mat Min Exi Min Mat Fac Gar Fac Low Low Dat Pro Fac Gar Fac Gar Fac Upp Upp War Pro Fac Ext Cet Arc Hub Traps Triggered 48 | . 2 . . . 2 2 2 14 . . . . . 5 2 1 3 . . 10 . 3 1 . . 1 Indirectly 1 | . . . . . . . . . . . . . . . . . . . . . . . . . . 1 Trap Hack Attempts . | . . . . . . . . . . . . . . . . . . . . . . . . . . . Triggered . | . . . . . . . . . . . . . . . . . . . . . . . . . . . Disarmed . | . . . . . . . . . . . . . . . . . . . . . . . . . . . Reprogrammed 8 | . . . . . . . . . . . . . . . . . . . . . . . 8 . . . Reused . | . . . . . . . . . . . . . . . . . . . . . . . . . . . Traps Extracted . | . . . . . . . . . . . . . . . . . . . . . . . . . . . Installed . | . . . . . . . . . . . . . . . . . . . . . . . . . . . Triggered 15 | . . . . . . . . . . . . . . . . . . . . 14 . . . . . 1 Objects Rigged 14 | . . . . . . . . . . . . . . . . . 11 . . . . 3 . . . . Exploded 4 | . . . . . . . . . . . . . . . . . 3 . . . . 1 . . . . Machines | -11 -10 -10 -10 -9 -8 -7 -7 -7 -7 -7 -7 -6 -6 -6 -6 -6 -5 -5 -5 -5 -4 -4 -4 -4 -4 -4 ---------- Run | Yrd Mat Min Exi Min Mat Fac Gar Fac Low Low Dat Pro Fac Gar Fac Gar Fac Upp Upp War Pro Fac Ext Cet Arc Hub Machines Disabled 122 | . 2 2 . . 1 5 2 5 . . . . . 3 7 8 24 1 . 6 . 22 2 . 1 31 Max in Single Turn 17 | . 1 1 . . 1 2 1 1 . . . . . 1 4 1 10 1 . 2 . 6 1 . . 17 Garrison Access 6 | . . . . . 1 . . 1 . . . . . . . . . . . . . 2 . . . 2 Garrison Relay 6 | . . . . . . . 1 . . . . . . 3 . 2 . . . . . . . . . . Network Hub 4 | . . . . . . . . . . . . . . . . . . . . . . . . . . 4 Machines Repaired . | . . . . . . . . . . . . . . . . . . . . . . . . . . . Machines Dismantled . | . . . . . . . . . . . . . . . . . . . . . . . . . . . Machines Sabotaged . | . . . . . . . . . . . . . . . . . . . . . . . . . . . Overloaded Fab Kills . | . . . . . . . . . . . . . . . . . . . . . . . . . . . Hacking | -11 -10 -10 -10 -9 -8 -7 -7 -7 -7 -7 -7 -6 -6 -6 -6 -6 -5 -5 -5 -5 -4 -4 -4 -4 -4 -4 --------- Run | Yrd Mat Min Exi Min Mat Fac Gar Fac Low Low Dat Pro Fac Gar Fac Gar Fac Upp Upp War Pro Fac Ext Cet Arc Hub Machines Accessed 127 | . 8 . 3 . 5 11 3 27 . . 3 . 10 3 6 2 18 1 . 1 . 12 6 2 1 5 Terminals 73 | . 8 . . . 4 5 3 15 . . . . 5 3 2 2 10 . . . . 6 5 2 . 3 Fabricators 20 | . . . . . . 3 . 4 . . . . 3 . 3 . 3 . . . . 4 . . . . Repair Stations 7 | . . . . . 1 1 . 2 . . . . 1 . . . 2 . . . . . . . . . Recycling Units 4 | . . . . . . 1 . 1 . . . . . . . . 1 . . . . . 1 . . . Scanalyzers 3 | . . . . . . . . 2 . . . . . . . . 1 . . . . . . . . . Garrison Access 11 | . . . . . . 1 . 3 . . . . 1 . 1 . 1 . . . . 2 . . . 2 Total Hacks 477 | . 32 . 11 . 19 28 8 124 . . 24 . 47 8 17 3 61 1 . 2 . 38 28 4 4 18 Successful 299 | . 23 . 11 . 10 16 4 75 . . 24 . 24 3 11 2 40 1 . 2 . 22 14 2 4 11 Failed 177 | . 9 . . . 9 12 4 48 . . . . 23 5 6 1 21 . . . . 16 14 2 . 7 Catastrophic 32 | . 1 . . . 1 3 2 8 . . . . 4 1 1 . 4 . . . . 4 2 1 . . Database Lockouts 1 | . . . . . . . . 1 . . . . . . . . . . . . . . . . . . Manual 209 | . 19 . 1 . 9 8 3 54 . . . . 31 1 9 . 33 . . . . 20 9 1 . 11 Terminals 287 | . 32 . . . 17 11 8 70 . . . . 27 8 7 3 34 . . . . 25 25 4 . 16 Fabricators 75 | . . . . . . 8 . 20 . . . . 15 . 9 . 12 . . . . 11 . . . . Repair Stations 20 | . . . . . 2 4 . 6 . . . . 2 . . . 6 . . . . . . . . . Recycling Units 12 | . . . . . . 2 . 4 . . . . . . . . 3 . . . . . 3 . . . Scanalyzers 18 | . . . . . . . . 16 . . . . . . . . 2 . . . . . . . . . Garrison Access 23 | . . . . . . 3 . 8 . . . . 3 . 1 . 4 . . . . 2 . . . 2 Terminal Hacks 132 | . 12 . 11 . 4 2 4 23 . . 24 . 5 3 2 2 10 1 . 2 . 8 8 2 4 5 Record 24 | . . . 10 . . . . 1 . . 6 . . . . . . . . 2 . . . 1 4 . Part Schematic 19 | . 1 . . . . 1 . 5 . . 10 . . . . . . . . . . 2 . . . . Robot Schematic 9 | . . . . . . . . 2 . . 5 . 1 . . . 1 . . . . . . . . . Robot Analysis 1 | . 1 . . . . . . . . . . . . . . . . . . . . . . . . . Prototype ID Bank 12 | . 3 . . . 2 . . 2 . . 3 . 1 . . . 1 . . . . . . . . . Open Door 2 | . . . . . . . . . . . . . . . . . . 1 . . . . . 1 . . Level Access Points 1 | . . . . . . . . . . . . . . . . . 1 . . . . . . . . . Branch Access Points 3 | . . . . . 1 . . . . . . . . . . . 1 . . . . 1 . . . . Emergency Access Points 4 | . . . . . . . 1 . . . . . . 1 . 1 . . . . . . . . . 1 Terminal Index 7 | . . . . . 1 . . 1 . . . . 1 . 1 . 1 . . . . 1 . . . 1 Fabricator Index 2 | . . . . . . . . . . . . . 1 . . . . . . . . 1 . . . . Repair Station Index 1 | . . . . . . . . 1 . . . . . . . . . . . . . . . . . . Scanalyzer Index 1 | . . . . . . . . 1 . . . . . . . . . . . . . . . . . . Garrison Index 3 | . . . . . . . . . . . . . . . . . 1 . . . . 1 . . . 1 Alert Level 1 | . . . . . . 1 . . . . . . . . . . . . . . . . . . . . Unreport Threat 14 | . . . . . . . . 4 . . . . . . 1 . 3 . . . . 1 5 . . . Locate Traps 14 | . 5 . . . . . . 5 . . . . . . . . 1 . . . . 1 1 . . 1 Reprogram Traps 2 | . . . . . . . . . . . . . . . . . . . . . . . 2 . . . Recall Investigation 1 | . . . . . . . . . . . . . 1 . . . . . . . . . . . . . Registered Components 1 | . 1 . . . . . . . . . . . . . . . . . . . . . . . . . Zone Layout 3 | . 1 . . . . . . 1 . . . . . . . . . . . . . . . . . 1 Garrison Registry 3 | . . . . . . . 1 . . . . . . 1 . 1 . . . . . . . . . . Patrol Navigation 2 | . . . . . . . 1 . . . . . . 1 . . . . . . . . . . . . Security Stations 1 | . . . . . . . 1 . . . . . . . . . . . . . . . . . . . Derelict Proto ID Bank 1 | . . . 1 . . . . . . . . . . . . . . . . . . . . . . . Fabricator Hacks 38 | . . . . . . 5 . 9 . . . . 5 . 6 . 7 . . . . 6 . . . . Network Status 9 | . . . . . . 2 . 2 . . . . 1 . 1 . 2 . . . . 1 . . . . Load Schematic 12 | . . . . . . 2 . 3 . . . . 2 . 1 . 2 . . . . 2 . . . . Build 17 | . . . . . . 1 . 4 . . . . 2 . 4 . 3 . . . . 3 . . . . Repair Station Hacks 16 | . . . . . 2 4 . 4 . . . . 2 . . . 4 . . . . . . . . . Scan Component 8 | . . . . . 1 2 . 2 . . . . 1 . . . 2 . . . . . . . . . Repair 8 | . . . . . 1 2 . 2 . . . . 1 . . . 2 . . . . . . . . . Recycling Unit Hacks 3 | . . . . . . . . 2 . . . . . . . . . . . . . . 1 . . . Report Inventory 2 | . . . . . . . . 1 . . . . . . . . . . . . . . 1 . . . Retrieve Components 1 | . . . . . . . . 1 . . . . . . . . . . . . . . . . . . Scanalyzer 16 | . . . . . . . . 14 . . . . . . . . 2 . . . . . . . . . Insert Component 7 | . . . . . . . . 6 . . . . . . . . 1 . . . . . . . . . Analyze 9 | . . . . . . . . 8 . . . . . . . . 1 . . . . . . . . . Garrison Access Hacks 12 | . . . . . . 1 . 3 . . . . 1 . 1 . 2 . . . . 2 . . . 2 Unlock Access 7 | . . . . . . 1 . 3 . . . . 1 . 1 . 1 . . . . . . . . . Seal Access 4 | . . . . . . . . . . . . . . . . . . . . . . 2 . . . 2 Coupler Status 1 | . . . . . . . . . . . . . . . . . 1 . . . . . . . . . Unauthorized Hacks 82 | . 11 . . . 4 4 . 20 . . . . 11 . 2 . 15 . . . . 6 5 . . 4 Terminals 57 | . 11 . . . 4 2 . 11 . . . . 6 . 1 . 10 . . . . 5 3 . . 4 Track 5 | . 1 . . . . . . 1 . . . . 1 . . . . . . . . 1 . . . 1 Assimilate 8 | . 1 . . . . 1 . 2 . . . . 1 . . . 2 . . . . . . . . 1 Botnet 36 | . 7 . . . 2 1 . 8 . . . . 4 . 1 . 6 . . . . 3 3 . . 1 Detonate 2 | . . . . . . . . . . . . . . . . . 1 . . . . 1 . . . . Disrupt 1 | . . . . . . . . . . . . . . . . . 1 . . . . . . . . . Operators 5 | . 2 . . . 2 . . . . . . . . . . . . . . . . . . . . 1 Fabricators 13 | . . . . . . . . 5 . . . . 4 . 1 . 2 . . . . 1 . . . . Report 3 | . . . . . . . . 1 . . . . 2 . . . . . . . . . . . . . Prioritize 9 | . . . . . . . . 3 . . . . 2 . 1 . 2 . . . . 1 . . . . Liberate 1 | . . . . . . . . 1 . . . . . . . . . . . . . . . . . . Repair Stations . | . . . . . . . . . . . . . . . . . . . . . . . . . . . Recycling Units 7 | . . . . . . 2 . 2 . . . . . . . . 1 . . . . . 2 . . . Reject 3 | . . . . . . 1 . 1 . . . . . . . . . . . . . . 1 . . . Mask 4 | . . . . . . 1 . 1 . . . . . . . . 1 . . . . . 1 . . . Scanalyzers . | . . . . . . . . . . . . . . . . . . . . . . . . . . . Garrison Access 5 | . . . . . . . . 2 . . . . 1 . . . 2 . . . . . . . . . Restock 1 | . . . . . . . . . . . . . . . . . 1 . . . . . . . . . Redirect 1 | . . . . . . . . 1 . . . . . . . . . . . . . . . . . . Reprogram 2 | . . . . . . . . 1 . . . . 1 . . . . . . . . . . . . . Eject 1 | . . . . . . . . . . . . . . . . . 1 . . . . . . . . . Data Cores Recovered 2 | . . . . . . . . . . . . . . . . . 1 . . . . . 1 . . . Used 2 | . . . . . . . . . . . . . . . . . 1 . . . . . 1 . . . Hacking Detections 95 | . 6 . . . 4 10 3 23 . . . . 8 3 5 1 16 . . . . 10 3 1 . 2 Full Trace Events 25 | . 3 . . . 1 2 . 8 . . . . 4 . 1 . 2 . . . . 3 1 . . . Feedback Events 1 | . . . . . . . . 1 . . . . . . . . . . . . . . . . . . Corruption 1 | . . . . . . . . 1 . . . . . . . . . . . . . . . . . . Feedback Blocked . | . . . . . . . . . . . . . . . . . . . . . . . . . . . Robot Schematics Acquired 9 | . . . . . . . . 2 . . 5 . 1 . . . 1 . . . . . . . . . Robots Built 14 | . . . . . . . . 3 . . . . 3 . 1 . . . . . . 7 . . . . Authchips . | . . . . . . . . . . . . . . . . . . . . . . . . . . . Time 644 | . . . . . . . . 116 . . . . 76 . 81 . 58 . . . . 313 . . . . Total Robot Build Rating 62 | . . . . . . . . 9 . . . . 15 . 1 . . . . . . 37 . . . . Part Schematics Acquired 25 | . 1 . . . . 1 . 10 . . 10 . . . . . 1 . . . . 2 . . . . Parts Built 14 | . . . . . . 1 . 4 . . . . 2 . 4 . 3 . . . . . . . . . Authchips . | . . . . . . . . . . . . . . . . . . . . . . . . . . . Time 700 | . . . . . . 53 . 120 . . . . 58 . 283 . 186 . . . . . . . . . Total Part Build Rating 76 | . . . . . . 6 . 13 . . . . 14 . 21 . 22 . . . . . . . . . Parts Repaired 8 | . . . . . 1 2 . 2 . . . . 1 . . . 2 . . . . . . . . . Time 372 | . . . . . 86 41 . 108 . . . . 44 . . . 93 . . . . . . . . . Parts Recycled . | . . . . . . . . . . . . . . . . . . . . . . . . . . . Recycled Matter . | . . . . . . . . . . . . . . . . . . . . . . . . . . . Retrieved Matter . | . . . . . . . . . . . . . . . . . . . . . . . . . . . Retrieved Components 9 | . . . . . . . . 9 . . . . . . . . . . . . . . . . . . Parts Scanalyzed 6 | . . . . . . . . 5 . . . . . . . . 1 . . . . . . . . . Part Schematics Acquired 6 | . . . . . . . . 5 . . . . . . . . 1 . . . . . . . . . Parts Damaged 2 | . . . . . . . . 1 . . . . . . . . 1 . . . . . . . . . Bothacking | -11 -10 -10 -10 -9 -8 -7 -7 -7 -7 -7 -7 -6 -6 -6 -6 -6 -5 -5 -5 -5 -4 -4 -4 -4 -4 -4 ------------ Run | Yrd Mat Min Exi Min Mat Fac Gar Fac Low Low Dat Pro Fac Gar Fac Gar Fac Upp Upp War Pro Fac Ext Cet Arc Hub Used RIF Installer 3 | . . . . . . . 1 . . . . . . 1 . 1 . . . . . . . . . . Robot Detection 1 | . . . . . . . . . . . . . . 1 . . . . . . . . . . . . Program Shield 1 | . . . . . . . . . . . . . . . . 1 . . . . . . . . . . Robots Hacked 10 | . . . . . . . . . . . . . . 4 . 2 3 . . . . . . . 1 . Non-combat 4 | . . . . . . . . . . . . . . . . . 3 . . . . . . . 1 . Combat 6 | . . . . . . . . . . . . . . 4 . 2 . . . . . . . . . . Robot Hacks Applied 13 | . . . . . . . . . . . . . . 4 . 2 5 . . . . . . . 2 . parse_system 1 | . . . . . . . . . . . . . . . . . 1 . . . . . . . . . no_distress 1 | . . . . . . . . . . . . . . . . . . . . . . . . . 1 . check_alert 1 | . . . . . . . . . . . . . . . . . . . . . . . . . 1 . purge_threat 3 | . . . . . . . . . . . . . . . . . 3 . . . . . . . . . overwrite_iff 1 | . . . . . . . . . . . . . . . . 1 . . . . . . . . . . formatsys_low 1 | . . . . . . . . . . . . . . . . . 1 . . . . . . . . . formatsys_high 5 | . . . . . . . . . . . . . . 4 . 1 . . . . . . . . . . Relay Couplers Released 21 | . . . . . 2 . 2 1 . . . . . 5 . 4 4 . . . . . . . . 3 Ejected 2 | . . . . . . . . . . . . . . . . . 2 . . . . . . . . . Machine Destruction 17 | . . . . . 2 . 2 1 . . . . . 5 . 4 . . . . . . . . . 3 Programmers 2 | . . . . . . . . . . . . . . . . . 2 . . . . . . . . . Attached 5 | . . . . . . . . . . . . . . 2 . 2 1 . . . . . . . . . Fabnet Peak Effective % . | . . . . . . . . . . . . . . . . . . . . . . . . . . . Robots Rewired 20 | . . . . . . . . . . . . . . . . 2 . 2 . . . . 16 . . . Allies Hacked 1 | . . . . . . . . . . . . . . . . . . . . . . 1 . . . . Hacks Repelled . | . . . . . . . . . . . . . . . . . . . . . . . . . . . Allies | -11 -10 -10 -10 -9 -8 -7 -7 -7 -7 -7 -7 -6 -6 -6 -6 -6 -5 -5 -5 -5 -4 -4 -4 -4 -4 -4 -------- Run | Yrd Mat Min Exi Min Mat Fac Gar Fac Low Low Dat Pro Fac Gar Fac Gar Fac Upp Upp War Pro Fac Ext Cet Arc Hub Total Allies 65 | . . . . . . . . 12 . . . . 4 4 1 4 3 2 . . . 7 22 5 . 1 Largest Group 16 | . . . . . . . . 3 . . . . 4 2 3 4 4 3 3 2 . 6 15 16 16 11 Highest-Rated Group 1015 | . . . . . . . . 48 . . . . 97 58 65 246 292 207 207 59 . 174 734 1015 1015 695 Highest-Rated Ally 159 | . . . . . . . . 16 . . . . 29 41 29 148 148 148 148 30 . 45 159 159 159 96 Total Orders 62 | . . . . . . . . . . . . . 9 . 13 8 20 6 . . 1 . . . 3 2 STAY 26 | . . . . . . . . . . . . . 4 . 3 4 8 3 . . . . . . 2 2 ROAM 3 | . . . . . . . . . . . . . . . . . 3 . . . . . . . . . FOLLOW 24 | . . . . . . . . . . . . . 4 . 5 3 8 3 . . . . . . 1 . GUARD 1 | . . . . . . . . . . . . . 1 . . . . . . . . . . . . . AID 1 | . . . . . . . . . . . . . . . . . 1 . . . . . . . . . PICKUP 2 | . . . . . . . . . . . . . . . 1 1 . . . . . . . . . . RETURN 5 | . . . . . . . . . . . . . . . 4 . . . . . 1 . . . . . Ally Attacks 598 | . . . . . . . . 70 . . . . 31 8 47 31 71 31 13 . 4 79 174 20 19 . Total Damage 12835 | . . . . . . . . 823 . . . . 382 242 707 1127 1819 560 147 . 24 912 4686 515 891 . Kills 79 | . . . . . . . . 8 . . . . 2 2 4 4 15 5 2 . . 5 25 4 3 . Allies Corrupted 4 | . . . . . . . . . . . . . . . . . . . . . . 3 1 . . . Allies Melted 1 | . . . . . . . . . . . . . . 1 . . . . . . . . . . . . Intel | -11 -10 -10 -10 -9 -8 -7 -7 -7 -7 -7 -7 -6 -6 -6 -6 -6 -5 -5 -5 -5 -4 -4 -4 -4 -4 -4 ------- Run | Yrd Mat Min Exi Min Mat Fac Gar Fac Low Low Dat Pro Fac Gar Fac Gar Fac Upp Upp War Pro Fac Ext Cet Arc Hub Robot Analysis Total 1 | . 1 . . . . . . . . . . . . . . . . . . . . . . . . . Derelict Logs Recovered 13 | . . 1 . 2 . . . . 3 3 . 1 . . . . . 1 . . 2 . . . . . Drone Launches 10 | . . . . . . . . . . . . . . . 8 . . . . . 2 . . . . . Drone Recoveries 10 | . . . . . . . . . . . . . . . 8 . . . . . 2 . . . . . Decoded 0b10 Intel 24 | . . . . . . . . . . . . . . . . . . . . . . 24 . . . . Traps 16 | . . . . . . . . . . . . . . . . . . . . . . 16 . . . . Emergency Access 7 | . . . . . . . . . . . . . . . . . . . . . . 7 . . . . Garrisons 1 | . . . . . . . . . . . . . . . . . . . . . . 1 . . . . Exploration | -11 -10 -10 -10 -9 -8 -7 -7 -7 -7 -7 -7 -6 -6 -6 -6 -6 -5 -5 -5 -5 -4 -4 -4 -4 -4 -4 ------------- Run | Yrd Mat Min Exi Min Mat Fac Gar Fac Low Low Dat Pro Fac Gar Fac Gar Fac Upp Upp War Pro Fac Ext Cet Arc Hub Turns Passed 31231 | 116 979 650 232 365 1243 1719 1028 5709 498 552 104 294 1071 1298 1638 705 4378 1228 354 1179 399 1733 1063 228 2066 402 Spaces Moved 22212 | 54 753 622 236 274 757 1161 594 4220 416 434 94 252 828 895 1151 479 2914 774 251 549 286 2113 1044 171 296 594 Core 17 | 8 . . . . . . . . . . . . . . . . . . . . . . 9 . . . Treads 50 | 46 4 . . . . . . . . . . . . . . . . . . . . . . . . . Legs . | . . . . . . . . . . . . . . . . . . . . . . . . . . . Wheels 18408 | . 749 622 236 274 757 1161 594 4220 416 434 94 252 828 895 1151 479 2914 774 251 549 286 472 . . . . Hover . | . . . . . . . . . . . . . . . . . . . . . . . . . . . Flight 3737 | . . . . . . . . . . . . . . . . . . . . . . 1641 1035 171 296 594 Fastest Speed 33 | 50 90 90 90 90 90 120 120 105 105 105 105 105 105 105 105 105 105 120 120 105 120 33 33 34 34 34 Average Speed 99 | 144 103 90 97 104 115 126 134 110 105 105 105 105 105 116 105 105 112 120 120 119 120 57 35 34 34 34 Slowest Speed 200 | 160 160 90 105 105 120 135 135 195 105 105 105 105 120 120 120 105 120 120 120 120 120 150 200 34 34 114 Overloaded Moves . | . . . . . . . . . . . . . . . . . . . . . . . . . . . Propulsion Burnouts . | . . . . . . . . . . . . . . . . . . . . . . . . . . . Robots Hopped 11 | . . . . . . . . . . . . . . . . . . . . . . 9 . 1 . 1 Cave-ins Triggered . | . . . . . . . . . . . . . . . . . . . . . . . . . . . Exploration Rate (%) 59 | 4 95 97 61 75 51 27 59 74 62 69 71 46 19 81 15 53 53 68 49 49 59 58 89 76 92 61 Regions Visited 26 Branch Regions 15 Pre-discovered Areas 7 | . . 1 1 2 . . . . . 1 1 . . . . . . . . . 1 . . . . . Known Exits Taken 8 | . . . . . . 1 . 1 1 . . . 1 . 1 . 1 . . . 1 1 . . . . Unknown Exits Taken 15 | 1 1 1 1 1 1 . . . . 1 1 1 . . . . . 1 1 1 . . 1 1 1 . Scrap Searched 13 | . . 1 . 1 . . . . 1 2 . . . . . . . 2 3 . 3 . . . . . Spaces Dug 229 | . . . . . 4 1 4 33 . . . . . 1 4 . 48 17 . 12 . 90 . . . 15 Terrain Destroyed 1916 | . 2 9 . 33 9 75 11 40 6 11 . 5 6 2 88 50 166 19 1 216 59 475 137 33 . 463 Melee 46 | . . . . . 4 1 2 33 . . . . . 1 2 . . . . . . . . . . 3 Projectile 261 | . . . . . 5 15 9 2 . . . . . 1 5 3 43 19 1 45 9 86 5 . . 13 AOE 1609 | . 2 9 . 33 . 59 . 5 6 11 . 5 6 . 81 47 123 . . 171 50 389 132 33 . 447 Terrain Rammed . | . . . . . . . . . . . . . . . . . . . . . . . . . . . Walls Destroyed . | . . . . . . . . . . . . . . . . . . . . . . . . . . . Machines Disabled . | . . . . . . . . . . . . . . . . . . . . . . . . . . . Actions | -11 -10 -10 -10 -9 -8 -7 -7 -7 -7 -7 -7 -6 -6 -6 -6 -6 -5 -5 -5 -5 -4 -4 -4 -4 -4 -4 --------- Run | Yrd Mat Min Exi Min Mat Fac Gar Fac Low Low Dat Pro Fac Gar Fac Gar Fac Upp Upp War Pro Fac Ext Cet Arc Hub Total 29820 | 69 864 671 237 324 1023 1344 748 4996 454 482 99 267 1005 1071 1481 626 3760 1026 287 1013 335 2607 1700 332 2252 747 Wait 5239 | . 44 18 . 25 151 105 81 387 9 5 . 10 140 65 199 47 577 181 . 354 11 245 411 157 1912 105 Move 22165 | 53 752 621 235 273 756 1160 593 4219 415 433 93 251 827 894 1150 478 2913 773 250 548 285 2095 1043 168 295 592 Hop 10 | . . . . . . . . . . . . . . . . . . . . . . 8 . 1 . 1 Pick Up 49 | . 2 . . . 5 2 2 10 . . . . 1 3 4 1 4 . 2 2 2 4 . . 4 1 Fast Attach 142 | 6 9 . 1 4 11 2 4 30 1 1 3 . 3 1 11 4 10 1 . 8 2 17 9 . 3 1 Attach 28 | . . . . . 1 1 1 2 . . . . 1 . 1 . 4 . . 1 2 10 . . 3 1 Detach 25 | . 1 . . . 1 . . 2 . . . . 1 1 1 2 4 1 . . . 11 . . . . Swap 111 | . . . . 4 5 5 1 24 . . . . 2 9 10 5 13 . . 7 4 7 8 2 3 2 Drop 142 | . 5 . 1 4 13 2 3 34 . . 3 . 3 2 13 4 7 . 2 9 4 20 7 . 6 . Fire 1037 | 10 39 18 . 14 57 45 31 135 10 21 . 6 11 34 45 36 166 34 18 54 16 148 70 1 . 18 Melee 131 | . . . . . 5 2 12 51 . . . . 1 18 3 . . . . . . . 13 3 7 16 Ram 1 | . . . . . . . . . . . . . . . . . 1 . . . . . . . . . Kick . | . . . . . . . . . . . . . . . . . . . . . . . . . . . Crush . | . . . . . . . . . . . . . . . . . . . . . . . . . . . Escape Stasis 140 | . . . . . . . 8 32 . . . . . 40 16 8 . . . . . 18 18 . . . Rewire 78 | . . . . . . . . . . . . . . 1 . 12 . 8 . . . . 57 . . . Trap . | . . . . . . . . . . . . . . . . . . . . . . . . . . . Miscellaneous 522 | . 12 14 . . 18 20 12 70 19 22 . . 15 3 28 29 61 28 15 30 9 24 64 . 19 10 Route ------- -11/Scrapyard -10/Materials (discovered 5 exits: [*Mat x3] / [*Min x2]) -10/Mines (discovered 3 exits: [*Mat x2] / *Exi) -10/Exiles -9/Mines (discovered 2 exits: *Mat x2) -8/Materials -7/Factory -7/Garrison (discovered 3 exits: *Fac x3) -7/Factory (discovered 7 exits: *Fac x3 / *Low x2 / Gar / Gar) -7/Lower Caves -7/Lower Caves (discovered 2 exits: *Fac / *Dat) -7/Data Miner -6/Proximity Caves -6/Factory (discovered 3 exits: Fac x2 / Gar) -6/Garrison (discovered 3 exits: *Fac x3) -6/Factory -6/Garrison (discovered 3 exits: *Fac x3) -5/Factory (discovered 7 exits: *Fac x4 / *Upp x2 / Gar) -5/Upper Caves -5/Upper Caves -5/Warlord -4/Proximity Caves -4/Factory (discovered 5 exits: [*Res] / *Upp x2 / *Ext x2) -4/Extension (discovered 3 exits: [*Res x2] / *Cet) -4/Cetus -4/Archives (discovered 3 exits: [*Res] / *Hub x2) -4/Hub_04(d) (discovered 4 exits: [*Res x4]) History --------- Turn | Location | Event 1 | -11/Scrapyard | Upgraded with Utility slot (x1) 1 | -11/Scrapyard | Upgraded with Weapon slot (x2) 59 | -11/Scrapyard | Discovered new exit (range 15) 117 | -11/Scrapyard | Entered Materials 283 | -10/Materials | Discovered new exit (range 13) 341 | -10/Materials | Discovered new exit (range 13) 396 | -10/Materials | Discovered new exit (range 10) 456 | -10/Materials | Build established: Tank 523 | -10/Materials | Discovered new exit (range 16) 741 | -10/Materials | Discovered new exit (range 11) 928 | -10/Materials | Reached level 2 958 | -10/Materials | Upgraded with Propulsion slot (x1) 958 | -10/Materials | Upgraded with Utility slot (x1) 1096 | -10/Materials | Entered Mines 1102 | -10/Mines | Met a Derelict bent on vengeance 1167 | -10/Mines | Deemed a non-threat by the Exiles lab entrance 1167 | -10/Mines | Discovered new exit (range 5) 1201 | -10/Mines | Discovered new exit (range 11) 1202 | -10/Mines | Learned location of Zion (-6) 1239 | -10/Mines | Discovered new exit (range 12) 1318 | -10/Mines | Reached level 3 1470 | -10/Mines | Found a hidden stash of uninstalled traps 1746 | -10/Mines | Entered Exiles 1770 | -10/Exiles | Met 8R-AWN 1784 | -10/Exiles | Met EX-HEX 1816 | -10/Exiles | Met EX-BIN 1826 | -10/Exiles | Aligned with FarCom system 1827 | -10/Exiles | Given EX-Vault access code 1848 | -10/Exiles | Opened EX-Vault 1853 | -10/Exiles | Found Cloak of Protection 1876 | -10/Exiles | Warned to stay clear of 0b10 Research branches 1910 | -10/Exiles | Met EX-DEC 1969 | -10/Exiles | Discovered new exit (range 10) 1978 | -10/Exiles | Left Exiles lab with Cloak of Protection 1978 | -10/Exiles | Entered Mines 1990 | -9/Mines | Reached level 4 2142 | -9/Mines | Learned location of Recycling (-9) 2175 | -9/Mines | Discovered new exit (range 17) 2327 | -9/Mines | Discovered new exit (range 3) 2343 | -9/Mines | Entered Materials 2345 | -8/Materials | Reached level 5 2531 | -8/Materials | Upgraded with Power slot (x1) 2605 | -8/Materials | Reached level 6 2673 | -8/Materials | Build established: Gunner 3205 | -8/Materials | Build established: Mutant 3241 | -8/Materials | Discovered new exit (range 3) 3343 | -8/Materials | Repaired Corrupted Graphene Brace 3390 | -8/Materials | Reached level 7 3397 | -8/Materials | Upgraded with Utility slot (x1) 3586 | -8/Materials | Entered Factory 3588 | -7/Factory | Reached level 8 3601 | -7/Factory | Upgraded with Utility slot (x1) 3693 | -7/Factory | Identified exit to Garrison 3907 | -7/Factory | Build established: Scavenger-Mutant 3947 | -7/Factory | Repaired Hrd. Heavy Armor Plating 3968 | -7/Factory | Repaired Hvy. Assault Cannon 4204 | -7/Factory | Reached level 9 4626 | -7/Factory | Fabricated Imp. Kinecellerator (x1) 4665 | -7/Factory | Reached level 10 4721 | -7/Factory | Build established: Hacker-Mutant 5305 | -7/Factory | Entered Garrison 5381 | -7/Garrison | Learned Factory security intel 5381 | -7/Garrison | Reached level 11 5394 | -7/Garrison | Spotted B-75 Beast 5459 | -7/Garrison | Spotted B-75 Beast 5636 | -7/Garrison | Discovered new exit (range 11) 5706 | -7/Garrison | Discovered new exit (range 17) 5706 | -7/Garrison | Discovered new exit (range 79) 5706 | -7/Garrison | Discovered new exit (range 95) 5794 | -7/Garrison | Garrison Relay disabled 5794 | -7/Garrison | Reached level 12 5854 | -7/Garrison | Upgraded with Utility slot (x1) 5964 | -7/Garrison | Upgraded with Weapon slot (x1) 6021 | -7/Garrison | Triggered checkpoint 6167 | -7/Garrison | Triggered checkpoint 6273 | -7/Garrison | Installed Relay Interface Framework 6333 | -7/Garrison | Entered Factory 6350 | -7/Factory | Identified exit to Garrison 6372 | -7/Factory | Build established: Hacker-Tank 6923 | -7/Factory | Repaired Hrd. Heavy Armor Plating 7035 | -7/Factory | Fabricated G-47 Trooper (x3) 7080 | -7/Factory | Central database locked down 7326 | -7/Factory | Reached level 13 7373 | -7/Factory | Upgraded with Propulsion slot (x2) 7575 | -7/Factory | Fabricated Arm. Wheel (x2) 8265 | -7/Factory | Discovered new exit (range 17) 8552 | -7/Factory | Identified exit to Garrison 8587 | -7/Factory | Reached level 14 8705 | -7/Factory | Discovered new exit (range 15) 8724 | -7/Factory | Lost 3 allies 9404 | -7/Factory | Fabricated Triangulator (x1) 9997 | -7/Factory | Reached level 15 10640 | -7/Factory | Discovered new exit (range 9) 10652 | -7/Factory | Identified exit to Garrison 10850 | -7/Factory | Repaired Broken Hyp. Mass Driver? 10936 | -7/Factory | Discovered new exit (range 13) 11071 | -7/Factory | Discovered new exit (range 17) 11399 | -7/Factory | Fabricated Imp. EM Pulse Cannon (x1) 12013 | -7/Factory | Identified exit to Lower Caves 12042 | -7/Factory | Entered Lower Caves 12157 | -7/Lower Caves | Learned location of 1 exit from Factory 12161 | -7/Lower Caves | Reached level 16 12164 | -7/Lower Caves | Upgraded with Utility slot (x1) 12434 | -7/Lower Caves | Learned location of 1 exit from Factory 12510 | -7/Lower Caves | Identified exit to Lower Caves 12540 | -7/Lower Caves | Entered another Lower Caves area 12542 | -7/Lower Caves | Attracted the attention of an 0b10 checkpoint 12576 | -7/Lower Caves | Discovered new exit (range 13) 12746 | -7/Lower Caves | Encountered a Warlord checkpoint 12853 | -7/Lower Caves | Spotted B-75 Beast 12875 | -7/Lower Caves | Destroyed B-75 Beast 12890 | -7/Lower Caves | Learned Factory trap positions 13033 | -7/Lower Caves | Learned 4 Factory zone layouts 13070 | -7/Lower Caves | Discovered new exit (range 8) 13092 | -7/Lower Caves | Entered Data Miner 13094 | -7/Data Miner | Discovered new exit (range 6) 13112 | -7/Data Miner | Met Data Miner 13134 | -7/Data Miner | Learned location of Section 7 (-2) 13134 | -7/Data Miner | Acquired the access code to Warlord's prototype stash 13152 | -7/Data Miner | Received God Mode back door access code from Data Miner 13196 | -7/Data Miner | Entered Proximity Caves 13198 | -6/Proximity Caves | Reached level 17 13472 | -6/Proximity Caves | Discovered new exit (range 17) 13485 | -6/Proximity Caves | Learned 8 Factory zone layouts 13490 | -6/Proximity Caves | Entered Factory 13491 | -6/Factory | Identified exit to Factory 13492 | -6/Factory | Reached level 18 13493 | -6/Factory | Loaded intel: 100 trap records 13861 | -6/Factory | Repaired Hrd. Heavy Armor Plating? 13969 | -6/Factory | Build established: Hacker-Gunner 14045 | -6/Factory | Fabricated G-50 Soldier (x3) 14203 | -6/Factory | Fabricated Hyp. Mass Driver (x2) 14537 | -6/Factory | Identified exit to Garrison 14558 | -6/Factory | Cargo convoy interrupted 14561 | -6/Factory | Entered Garrison 14676 | -6/Garrison | Garrison Relay disabled 14676 | -6/Garrison | Reached level 19 14691 | -6/Garrison | Triggered checkpoint 15014 | -6/Garrison | Triggered checkpoint 15018 | -6/Garrison | Spotted B-75 Beast 15025 | -6/Garrison | Triggered checkpoint 15067 | -6/Garrison | Destroyed B-75 Beast 15138 | -6/Garrison | Discovered new exit (range 12) 15352 | -6/Garrison | Garrison Relay disabled 15399 | -6/Garrison | Discovered new exit (range 11) 15429 | -6/Garrison | Discovered new exit (range 13) 15429 | -6/Garrison | Discovered new exit (range 50) 15429 | -6/Garrison | Discovered new exit (range 68) 15470 | -6/Garrison | Found Fusion Bomb Launcher 15671 | -6/Garrison | Expanded RIF knowledge: Robot Detection 15757 | -6/Garrison | Triggered checkpoint 15809 | -6/Garrison | Garrison Relay disabled 15859 | -6/Garrison | Entered Factory 15859 | -6/Factory | Accompanied by 2 allies 15888 | -6/Factory | Identified exit to Garrison 16150 | -6/Factory | Fabricated Exp. Targeting Computer? 16330 | -6/Factory | Fabricated R-06 Scavenger (x1) 16346 | -6/Factory | Fabricated Adv. Terrain Scanner? 16440 | -6/Factory | Fabricated Combat Drone Bay (x1) 16916 | -6/Factory | Cargo convoy interrupted 16923 | -6/Factory | Core integrity fell below 50% 16940 | -6/Factory | Reached level 20 16943 | -6/Factory | Core integrity fell below 20% 16986 | -6/Factory | Destroyed 8 combat bots 17000 | -6/Factory | Found Prototype Device 17000 | -6/Factory | Identified Exp. Shield Generator 17259 | -6/Factory | First assault squad dispatched 17497 | -6/Factory | Entered Garrison 17497 | -6/Garrison | Accompanied by 2 allies 17515 | -6/Garrison | Discovered exit to Factory (range 88) 17515 | -6/Garrison | Discovered exit to Factory (range 56) 17515 | -6/Garrison | Discovered exit to Factory (range 68) 17576 | -6/Garrison | Rewired Striker 17636 | -6/Garrison | Garrison Relay disabled 17664 | -6/Garrison | Spotted B-90 Cyclops 17773 | -6/Garrison | Triggered checkpoint 17773 | -6/Garrison | Spotted B-75 Beast 17781 | -6/Garrison | Triggered checkpoint 17826 | -6/Garrison | Destroyed B-75 Beast 17826 | -6/Garrison | Triggered checkpoint 17860 | -6/Garrison | Destroyed 10 combat bots 17919 | -6/Garrison | Spotted B-75 Beast 17919 | -6/Garrison | Allies destroyed B-90 Cyclops 17932 | -6/Garrison | Rewired B-90 Cyclops 17950 | -6/Garrison | Allies destroyed B-75 Beast 17974 | -6/Garrison | Found Quantum Capacitor 18061 | -6/Garrison | Triggered checkpoint 18124 | -6/Garrison | Garrison Relay disabled 18140 | -6/Garrison | Expanded RIF knowledge: Program Shield 18202 | -6/Garrison | Entered Factory 18202 | -5/Factory | Accompanied by 2 allies 18204 | -5/Factory | Reached level 21 18268 | -5/Factory | Repaired Hyp. Mass Driver 18280 | -5/Factory | Upgraded with Utility slot (x1) 18399 | -5/Factory | Discovered new exit (range 9) 18734 | -5/Factory | Fabricated Nova Cannon (x1) 18800 | -5/Factory | Reached level 22 19075 | -5/Factory | Identified exit to Garrison 19100 | -5/Factory | Core integrity fell below 50% 19100 | -5/Factory | Garrison activated, responded to threat 19861 | -5/Factory | Upgraded with Weapon slot (x1) 19922 | -5/Factory | Repaired Broken Lrn. Phase Cannon 20042 | -5/Factory | Fabricated Hyp. Mass Driver? 20631 | -5/Factory | Reached level 23 20986 | -5/Factory | Upgraded with Weapon slot (x1) 21303 | -5/Factory | Build established: Hacker-Executioner 21805 | -5/Factory | Identified exit to Factory 21805 | -5/Factory | Identified exit to Upper Caves 22102 | -5/Factory | First assault squad dispatched 22186 | -5/Factory | Core integrity fell below 20% 22580 | -5/Factory | Entered Upper Caves 22580 | -5/Upper Caves | Accompanied by 1 ally 23193 | -5/Upper Caves | Attracted the attention of an 0b10 outpost 23288 | -5/Upper Caves | Learned Factory stockpile data 23514 | -5/Upper Caves | Reached level 24 23708 | -5/Upper Caves | Discovered new exit (range 14) 23808 | -5/Upper Caves | Entered another Upper Caves area 23808 | -5/Upper Caves | Accompanied by 3 allies 24129 | -5/Upper Caves | Discovered new exit (range 14) 24162 | -5/Upper Caves | Entered Warlord 24162 | -5/Warlord | Accompanied by 2 allies 24254 | -5/Warlord | Discovered new exit (range 15) 24307 | -5/Warlord | Opened side exit 24319 | -5/Warlord | RIF detected upon attempting to enter Warlord's base 24319 | -5/Warlord | Attacked by Warlord forces 24477 | -5/Warlord | Warlord's base attacked by MAIN.C 24827 | -5/Warlord | Warlord forces counterattacked 24972 | -5/Warlord | Found Prototype Energy Gun 24972 | -5/Warlord | Identified Vortex Shotgun 24978 | -5/Warlord | Found Prototype Energy Cannon 24978 | -5/Warlord | Identified Vortex Driver 24981 | -5/Warlord | Found Prototype Energy Gun 24981 | -5/Warlord | Identified Vortex Rail 24994 | -5/Warlord | Found Vortex Rail 24999 | -5/Warlord | Found Vortex Driver 25010 | -5/Warlord | Found Vortex Shotgun 25087 | -5/Warlord | Spotted Executioner 25091 | -5/Warlord | Destroyed Executioner 25141 | -5/Warlord | Spotted 3U-SBI(g) 25152 | -5/Warlord | Warlord base infiltrated, sounded retreat 25158 | -5/Warlord | Spotted Executioner 25169 | -5/Warlord | Spotted Striker 25188 | -5/Warlord | Spotted Executioner 25194 | -5/Warlord | Destroyed Executioner 25202 | -5/Warlord | Destroyed Executioner 25233 | -5/Warlord | Destroyed 9 combat bots 25300 | -5/Warlord | Spotted Striker 25320 | -5/Warlord | Destroyed Striker 25341 | -5/Warlord | Entered Proximity Caves 25343 | -4/Proximity Caves | Reached level 25 25392 | -4/Proximity Caves | Learned location of Armory (-3) 25423 | -4/Proximity Caves | Spotter reported a threat 25453 | -4/Proximity Caves | Spotter reported a threat 25476 | -4/Proximity Caves | Spotter reported a threat 25527 | -4/Proximity Caves | Spotter reported a threat 25542 | -4/Proximity Caves | Learned 4 Research zone layouts 25554 | -4/Proximity Caves | Spotter reported a threat 25580 | -4/Proximity Caves | Spotter reported a threat 25728 | -4/Proximity Caves | Discovered exit to Factory (range 11) 25740 | -4/Proximity Caves | Entered Factory 25741 | -4/Factory | Core integrity fell below 50% 25857 | -4/Factory | Found Quantum Capacitor 25990 | -4/Factory | Search patrols dispatched 26253 | -4/Factory | Identified exit to Upper Caves 26253 | -4/Factory | Identified exit to Extension 26271 | -4/Factory | Core integrity fell below 20% 26288 | -4/Factory | Search patrols dispatched 26465 | -4/Factory | Upgraded with Propulsion slot (x1) 26530 | -4/Factory | Search patrols dispatched 26571 | -4/Factory | Fabricated O-32 Director? 26718 | -4/Factory | Discovered new exit (range 18) 26737 | -4/Factory | Spotted B-86 Titan 26740 | -4/Factory | Search patrols dispatched 26747 | -4/Factory | Build established: Hacker-Scout 26950 | -4/Factory | Incoming investigation squad redirected 26968 | -4/Factory | Incoming investigation squad redirected 26971 | -4/Factory | Fabricated G-50 Soldier? 26990 | -4/Factory | Search patrols dispatched 27016 | -4/Factory | Fabricated G-50 Soldier? 27069 | -4/Factory | Reached level 26 27078 | -4/Factory | Upgraded with Propulsion slot (x1) 27237 | -4/Factory | Lost 3 allies 27240 | -4/Factory | First assault squad dispatched 27262 | -4/Factory | Incoming assault squad redirected 27473 | -4/Factory | Entered Extension 27569 | -4/Extension | Rescued a captive Derelict 27570 | -4/Extension | Rescued a captive Derelict 27677 | -4/Extension | Rescued A7 28038 | -4/Extension | Spotted B-86 Titan 28089 | -4/Extension | Build established: Commander-Ninja 28117 | -4/Extension | Discovered new exit (range 23) 28126 | -4/Extension | Allies destroyed B-86 Titan 28128 | -4/Extension | Spotted B-86 Titan 28149 | -4/Extension | Reached level 27 28149 | -4/Extension | Allies destroyed B-86 Titan 28395 | -4/Extension | Rescued a captive Derelict 28396 | -4/Extension | Rescued a captive Derelict 28427 | -4/Extension | Rescued a captive Derelict 28473 | -4/Extension | First assault squad dispatched 28479 | -4/Extension | Discovered new exit (range 23) 28497 | -4/Extension | Discovered new exit (range 18) 28518 | -4/Extension | Disrupted transfer network 28536 | -4/Extension | Entered Cetus 28536 | -4/Cetus | Accompanied by 11 allies (A7) 28541 | -4/Cetus | Acquired a Cetus Manufacturing Module code from A7 28543 | -4/Cetus | Spotted Cetus Guard 28543 | -4/Cetus | Spotted Cetus Guard 28543 | -4/Cetus | Spotted Cetus Guard 28543 | -4/Cetus | Spotted Cetus Guard 28549 | -4/Cetus | Lost 4 allies 28551 | -4/Cetus | Allies destroyed Cetus Guard 28554 | -4/Cetus | Allies destroyed Cetus Guard 28559 | -4/Cetus | Allies destroyed Cetus Guard 28563 | -4/Cetus | Allies destroyed Cetus Guard 28573 | -4/Cetus | Started Cetus Manufacturing Module 28598 | -4/Cetus | Manufactured an Enhanced Grunt 28623 | -4/Cetus | Manufactured an Enhanced Grunt 28648 | -4/Cetus | Manufactured an Enhanced Grunt 28673 | -4/Cetus | Manufactured an Enhanced Grunt 28698 | -4/Cetus | Manufactured an Enhanced Grunt 28712 | -4/Cetus | Discovered new exit (range 20) 28764 | -4/Cetus | Entered Archives 28764 | -4/Archives | Accompanied by 16 allies (A7) 28789 | -4/Archives | Reached level 28 28790 | -4/Archives | Discovered new exit (range 21) 28792 | -4/Archives | Discovered new exit (range 19) 28804 | -4/Archives | Discovered new exit (range 18) 29483 | -4/Archives | Unable to access archive contents 30830 | -4/Archives | Entered Hub_04(d) 30830 | -4/Hub_04(d) | Accompanied by 10 allies 30832 | -4/Hub_04(d) | Discovered new exit (range 19) 31061 | -4/Hub_04(d) | Discovered new exit (range 19) 31090 | -4/Hub_04(d) | Network Hub disabled 31148 | -4/Hub_04(d) | Network Hub disabled 31151 | -4/Hub_04(d) | Spotted Lightning 31189 | -4/Hub_04(d) | Spotted Lightning 31190 | -4/Hub_04(d) | Spotted Lightning 31196 | -4/Hub_04(d) | Discovered new exit (range 14) 31199 | -4/Hub_04(d) | Discovered new exit (range 7) 31213 | -4/Hub_04(d) | Network Hub disabled 31213 | -4/Hub_04(d) | Spotted Lightning 31213 | -4/Hub_04(d) | Spotted Lightning 31213 | -4/Hub_04(d) | Spotted Lightning 31216 | -4/Hub_04(d) | Network Hub disabled 31229 | -4/Hub_04(d) | Spotted Lightning 31230 | -4/Hub_04(d) | Spotted Lightning 31232 | -4/Hub_04(d) | Destroyed by Lightning with EMDS Last Messages --------------- 31211_ Drone signal jammed. 31213_ ALERT: Network intrusion management efficiency at 65%. 31213_ Network Hub explodes. 31213_ Terminal disabled. 31213_ Backup Mainframe disabled. 31213_ Penetrated by EMDS Slug. 31215_ W-44 Eye distress signal jammed. 31215_ Penetrated by EMDS Slug. 31216_ ALERT: Network intrusion management efficiency at 63%. 31216_ W-44 Eye distress signal jammed. 31219_ EMDS Slug penetrates Wall. 31224_ Y-64 Sentinel IFF system glitched. 31224_ Slug penetrates Archive Unit. 31224_ EMDS Slug penetrates Wall. 31226_ ALERT: Suspicious intruders detected, dispatching Cutter reinforcements to area. 31228_ EMDS Slug penetrates Wall. 31230_ ALERT: Rogue bot located, Programmers report to Hub_04(d) Zone 5G. 31232_ Drone signal jammed. 31232_ EMDS Slug penetrates Wall. Map ----- +----------------------------------------------------+ | # # # ##"""""# #### ####?# | | # " !!! " " """"###"###############?# #?##?# | | # ## !! #"""""""" ###### ###?## ##?### | | # ## !! "" ###### ###### ?####? | | # ## "" " ###### ####?? ## | | # ## "" " " ###"#####?### ##? ?? | | # ## #" " "" # ## #???? | | # ## " ## # ? ?## < + ??T | | # "" """"""""" # ## #? ?? | | # #" " """ ### ##??"" | | / #" "" # " " ###??? ??? | | # ## ""]] " # "" " ##? ?##??? | | # ## ""]] """"""""#"#"" """? ?### ?##??? | | # ##" #"]] " " # ### ? ??###????#?? | | # ##! #" # " #"######?"###+#????#???? | | ##/#####"###/######" H ? ??????? | | [ g ? ? ? ##?###??? | | ! H g ? T##?#???? | | ###### #####/#"#"""g ?## ????? | | ########## ## ""BB ""T"" ? ? #?????"?? | | ##### # ## ##BB """"" ?? ?????? | | ##### ? ## #### ? ? ?? ? ??? ?? | | ##### ## + ? ?? ??? | | ##### ######??# #####;#######?##?#???????? | | ######+###########? ; ##? ?? ? ???#?? | | ########?#@ n #? "????#?????? | | g ######## # #? ????#??????? | | ########## / """"## ??? ?#?????? | | """" """" ########## """"## ? ???#????? ? | | """" [] """ + Yhh + """"## ?"??????????? | | """" [] """"h########## """"#?? ? ??"?"??? ? | | """" ]] """ #######?## ##??"???? ??? ?? | | ##############/###### ?? ????????? | | i #?######???# ?#????" ?????????? | | #########+###"####""#?##???? ? !#???????? ?? +???? | | + " #?#####??? "h i? ??"????????? | | # ###????? ;###???? ?"? ????? | | ##?##+## + "#?#??##?? ; ?#??#??#???????? | | # # #???h;;#????????? ????? | | # ######"""" = h ??????????????? | | ? ?# ###?? """" " ?????????????? | | ? # #### ?" h ? ###?#???"??????? | | ######## #### ?" h ???#?? ?? ????????? | | ## #### ?# h ?????????????????? | | == ## #### " ????? ????????????? | | == " ]"""""" ? ?#"""???????????? | | == " /??? ??????????????? | | " " ? ?? ??????????????? | | " """"" ???? ?????????????? | | "" ## ?????????????????????? | +----------------------------------------------------+ Best States ------------- Heat Dissipation 85 Energy Generation 46 Energy Capacity 670 Matter Stores 400 Matter Capacity 400 Sight Range 20 Terrain Scan Range 24 Terrain Scan Density 410 ECM Strength 2 Jamming Range 14 Cloak Strength 6 Corruption Containment 12 Armor Coverage 600 Resistance: KI 10 Resistance: TH 30 Resistance: EX 10 Phase Shifting 10 Evasion (%) 73 Targeting Accuracy 12 Armor Integrity Analysis 30 Recoil Reduction 6 Energy Filtering 30 Kinecelleration 40 Offensive Hacking 32 Defensive Hacking 15 Relay Coupler Types 2 Relay Coupler Value 92 Item Schematics ----------------- Structural Scanner | -10/Materials | Hacked Imp. Kinecellerator | -7/Factory | Hacked Arm. Wheel | -7/Factory | Hacked Coil Gun | -7/Factory | Hacked Triangulator | -7/Factory | Hacked EM Disruption Field | -7/Factory | Hacked Launcher Guidance Computer | -7/Factory | Hacked Imp. EM Pulse Cannon | -7/Factory | Scanalyzed Hyp. Mass Driver | -7/Factory | Scanalyzed Adv. Thermal Shield | -7/Factory | Scanalyzed Armor Integrity Analyzer | -7/Factory | Scanalyzed ECM Suite | -7/Factory | Scanalyzed Combat Drone Bay | -7/Data Miner | Free Lgt. Regenerative Plating | -7/Data Miner | Free Cld. Cesium-ion Thruster | -7/Data Miner | Free Exp. Targeting Computer | -7/Data Miner | Free Antimatter Cannon | -7/Data Miner | Free Mni. Drone Bay | -7/Data Miner | Free Arm. Medium Treads | -7/Data Miner | Free Mass Driver | -7/Data Miner | Free Imp. Shock Absorption System | -7/Data Miner | Free Lgt. Antimatter Reactor | -7/Data Miner | Free Lrn. Phase Cannon | -5/Factory | Scanalyzed Adv. Quantum Shading Machine | -4/Factory | Hacked Lrn. Terrain Scanner | -4/Factory | Hacked Robot Schematics ------------------ G-47 Trooper | -7/Factory | Hacked B-48 Gladiator | -7/Factory | Hacked L-41 Fighter | -7/Data Miner | Free R-10 Processor | -7/Data Miner | Free A-15 Conveyor | -7/Data Miner | Free W-25 Informer | -7/Data Miner | Free B-60 Warrior | -7/Data Miner | Free H-55 Commando | -6/Factory | Hacked G-50 Soldier | -5/Factory | Hacked Fabricated ------------ Imp. Kinecellerator | x1 | -7/Factory G-47 Trooper | x3 | -7/Factory | Preloaded Arm. Wheel | x2 | -7/Factory Triangulator | x1 | -7/Factory Imp. EM Pulse Cannon | x1 | -7/Factory G-50 Soldier | x3 | -6/Factory | Preloaded Hyp. Mass Driver | x2 | -6/Factory Exp. Targeting Computer | x1 | -6/Factory | Preloaded R-06 Scavenger | x1 | -6/Factory | Preloaded Adv. Terrain Scanner | x2 | -6/Factory | Preloaded Combat Drone Bay | x1 | -6/Factory Nova Cannon | x1 | -5/Factory | Preloaded Hyp. Mass Driver | x2 | -5/Factory O-32 Director | x1 | -4/Factory | Preloaded G-50 Soldier | x3 | -4/Factory G-50 Soldier | x3 | -4/Factory Alien Tech Used ----------------- None Achievements -------------- None Challenges ------------ None RPGLIKE | -11 -10 -10 -10 -9 -8 -7 -7 -7 -7 -7 -7 -6 -6 -6 -6 -6 -5 -5 -5 -5 -4 -4 -4 -4 -4 -4 --------- Run | Yrd Mat Min Exi Min Mat Fac Gar Fac Low Low Dat Pro Fac Gar Fac Gar Fac Upp Upp War Pro Fac Ext Cet Arc Hub Levels Raised 27 | . 1 1 . 1 3 3 2 3 1 . . 1 1 1 1 . 3 1 . . 1 1 1 . 1 . XP Earned 43954 | 3000 1765 1850 350 1650 4275 4485 2558 5145 609 650 220 1484 1583 1189 1161 746 4524 332 236 753 572 2277 1595 257 245 443 XP Spent 42145 | 3000 1300 . 1450 . 6250 2850 3800 3575 2540 . . . 3500 1500 . . 6190 . . . . 4500 1190 . . 500 Upgrades 82 | 10 2 . 5 . 21 5 3 5 5 . . . 5 1 . . 9 . . . . 5 4 . . 2 Power Slot 1 | . . . . . 1 . . . . . . . . . . . . . . . . . . . . . Propulsion Slot 5 | . 1 . . . . . . 2 . . . . . . . . . . . . . 2 . . . . Utility Slot 7 | 1 1 . . . 1 1 1 . 1 . . . . . . . 1 . . . . . . . . . Weapon Slot 5 | 2 . . . . . . 1 . . . . . . . . . 2 . . . . . . . . . Core Integrity 8 | . . . . . 6 . . . 2 . . . . . . . . . . . . . . . . . Heat Dissipation 10 | 5 . . 1 . . . . . 2 . . . . . . . . . . . . . 2 . . . Energy Generation 2 | . . . 1 . . . . . . . . . . . . . . . . . . . 1 . . . Energy Storage 4 | . . . . . 4 . . . . . . . . . . . . . . . . . . . . . Matter Storage 2 | . . . . . . . . 2 . . . . . . . . . . . . . . . . . . Mass Support 2 | . . . . . . . . . . . . . . . . . . . . . . 2 . . . . Inventory Capacity 6 | 2 . . . . 1 . 1 1 . . . . . 1 . . . . . . . . . . . . Sight Range 4 | . . . 1 . 1 . . . . . . . 1 . . . . . . . . 1 . . . . Terrain Scan Density 4 | . . . . . . . . . . . . . . . . . 4 . . . . . . . . . Ranged Accuracy 5 | . . . 2 . 2 . . . . . . . 1 . . . . . . . . . . . . . Melee Accuracy 2 | . . . . . . . . . . . . . . . . . . . . . . . . . . 2 Hack Attack % 4 | . . . . . 1 1 . . . . . . 2 . . . . . . . . . . . . . Hack Defense % 3 | . . . . . 1 1 . . . . . . 1 . . . . . . . . . . . . . KI Resistance % 2 | . . . . . 2 . . . . . . . . . . . . . . . . . . . . . TH Resistance % 2 | . . . . . 1 1 . . . . . . . . . . . . . . . . . . . . EX Resistance % 2 | . . . . . . . . . . . . . . . . . 2 . . . . . . . . . KI Damage % 1 | . . . . . . 1 . . . . . . . . . . . . . . . . . . . . TH Damage % 1 | . . . . . . . . . . . . . . . . . . . . . . . 1 . . . Protomatter Created 3966 | . 201 168 . . 131 130 245 444 141 158 . . 76 35 292 80 602 120 8 225 59 244 345 . 82 180 Integrity Restored 10911 | . 164 216 . . 393 383 270 1361 413 464 . . 337 54 612 633 1347 615 304 627 177 522 1386 . 407 226 Core 9468 | . 99 147 . . 393 323 270 992 329 293 . . 318 54 612 633 1347 615 97 627 177 522 1107 . 327 186 Parts 1443 | . 65 69 . . . 60 . 369 84 171 . . 19 . . . . . 207 . . . 279 . 80 40 Protomatter Decayed 2129 | . 142 91 . . . . 109 117 . 21 . . . 17 57 . 149 . . 1020 . 11 289 . 58 48 Game ------ Seed DecoyColdDisintegrator Manual? 0 Play Time 06:53:26 Cumulative 222.5 hours Start 2024.06.15 @ 08:09:58 End 2024.06.16 @ 16:43:20 Sessions 9 Manual Loads 0 Difficulty Rogue Special Mode Winter2019/RPGLIKE Game No. 63 Rogue 58 Adventurer 4 Explorer 1 Win Type - Total 4 Types 1/0/1/1/0/0/0/0/1 Lore% 50 Gallery% 67 Achievement% 44 Wizard Run 0 Options --------- Layout 0 ASCII 0 Keyboard 0 Movement Mouse Keybinds 0 Fullscreen 1 Font 24/Smallcaps Map View 76x50 Zoom Use 0% Tactical HUD 1 Map Filters NONE Filters NONE Steam X RUN: 78ca6148-449a-4fa0-ad6e-71fa9765907b